[Event "*** Titled Tuesday 3|2 Blitz"]
[Site "Chess.com"]
[Date "2015.02.24"]
[Round "8"]
[White "chito89"]
[Black "jup1978"]
[Result "1-0"]
[WhiteElo "2581"]
[BlackElo "2162"]
[TimeControl "180+2"]
[EndTime "12:40:09 PST"]
[Termination "chito89 won by resignation"]

1. e4 {[%clk 0:03:00]} 1... e5 {[%clk 0:02:56.5]} 2. Nf3 {[%clk 0:02:59.6]} 2...
Nc6 {[%clk 0:02:57.9]} 3. Bb5 {[%clk 0:02:59.9]} 3... Bc5 {[%clk 0:02:58.3]} 4.
O-O {[%clk 0:03:00.7]} 4... Nd4 {[%clk 0:02:59.3]} 5. Nxd4 {[%clk 0:02:59.8]}
5... Bxd4 {[%clk 0:03:01.2]} 6. c3 {[%clk 0:03:00.6]} 6... Bb6 {[%clk
0:03:02.8]} 7. d4 {[%clk 0:03:01.7]} 7... c6 {[%clk 0:03:04.4]} 8. Bc4 {[%clk
0:03:02.3]} 8... d6 {[%clk 0:03:05.2]} 9. Be3 {[%clk 0:03:01.8]} 9... Nf6 {[%clk
0:02:59.1]} 10. Nd2 {[%clk 0:03:01.9]} 10... O-O {[%clk 0:02:56.4]} 11. h3
{[%clk 0:02:59.7]} 11... exd4 {[%clk 0:02:52.9]} 12. Bxd4 {[%clk 0:02:56.1]}
12... Bxd4 {[%clk 0:02:52.5]} 13. cxd4 {[%clk 0:02:57.6]} 13... Nxe4 {[%clk
0:02:52.6]} 14. Nxe4 {[%clk 0:02:58.1]} 14... d5 {[%clk 0:02:53.9]} 15. Nd2
{[%clk 0:02:58.5]} 15... dxc4 {[%clk 0:02:54.9]} 16. Nxc4 {[%clk 0:02:59.9]}
16... Be6 {[%clk 0:02:56.2]} 17. Ne3 {[%clk 0:03:00.3]} 17... Re8 {[%clk
0:02:55.8]} 18. Qa4 {[%clk 0:02:59.3]} 18... Qb6 {[%clk 0:02:54.6]} 19. Rfd1
{[%clk 0:03:00.3]} 19... Rad8 {[%clk 0:02:55.4]} 20. Rd2 {[%clk 0:02:59.3]}
20... Rd7 {[%clk 0:02:56.4]} 21. d5 {[%clk 0:02:53.6]} 21... cxd5 {[%clk
0:02:43.1]} 22. Rad1 {[%clk 0:02:53.8]} 22... Red8 {[%clk 0:02:25.3]} 23. Rd4
{[%clk 0:02:45.3]} 23... h6 {[%clk 0:02:24.1]} 24. R1d2 {[%clk 0:02:45.4]} 24...
Qc6 {[%clk 0:02:24.8]} 25. Qxa7 {[%clk 0:02:44.8]} 25... b6 {[%clk 0:02:19.5]}
26. Qa3 {[%clk 0:02:44.4]} 26... Ra8 {[%clk 0:02:19.3]} 27. Qb3 {[%clk
0:02:40.8]} 27... Rda7 {[%clk 0:02:11.5]} 28. a3 {[%clk 0:02:39.5]} 28... Re8
{[%clk 0:02:04.3]} 29. f4 {[%clk 0:02:33.2]} 29... Rae7 {[%clk 0:01:53.2]} 30.
f5 {[%clk 0:02:32.1]} 30... Bxf5 {[%clk 0:01:36.7]} 31. Nxf5 {[%clk 0:02:31.6]}
31... Re1+ {[%clk 0:01:37.5]} 32. Kh2 {[%clk 0:02:30.3]} 32... Qc7+ {[%clk
0:01:27.8]} 33. Qg3 {[%clk 0:02:26.1]} 1-0

[Event "*** Titled Tuesday 3|2 Blitz"]
[Site "Chess.com"]
[Date "2015.02.24"]
[Round "8"]
[White "GeorgMeier"]
[Black "Hikaru"]
[Result "1-0"]
[WhiteElo "2678"]
[BlackElo "2832"]
[TimeControl "180+2"]
[EndTime "12:41:42 PST"]
[Termination "GeorgMeier won by resignation"]

1. Nf3 {[%clk 0:03:00]} 1... b6 {[%clk 0:02:59.1]} 2. Ng1 {[%clk 0:03:01.9]}
2... Bb7 {[%clk 0:03:00]} 3. Nf3 {[%clk 0:03:03]} 3... f5 {[%clk 0:02:59.4]} 4.
g3 {[%clk 0:03:02.4]} 4... e5 {[%clk 0:02:59.4]} 5. Bg2 {[%clk 0:03:01.8]} 5...
e4 {[%clk 0:03:00.7]} 6. Nd4 {[%clk 0:03:03]} 6... Qf6 {[%clk 0:03:01.9]} 7. c3
{[%clk 0:03:00.9]} 7... Nc6 {[%clk 0:03:01.4]} 8. O-O {[%clk 0:02:36]} 8... h5
{[%clk 0:02:44]} 9. d3 {[%clk 0:02:31.8]} 9... Nxd4 {[%clk 0:02:40.4]} 10. cxd4
{[%clk 0:02:32.7]} 10... h4 {[%clk 0:02:42]} 11. Nc3 {[%clk 0:02:27.8]} 11...
Qg6 {[%clk 0:02:36]} 12. Bf4 {[%clk 0:02:05.1]} 12... Bd6 {[%clk 0:02:21.6]} 13.
Qd2 {[%clk 0:01:58.2]} 13... Nf6 {[%clk 0:02:06.3]} 14. Nb5 {[%clk 0:01:40.7]}
14... Nd5 {[%clk 0:01:30.1]} 15. Bxd6 {[%clk 0:01:40]} 15... cxd6 {[%clk
0:01:30.3]} 16. dxe4 {[%clk 0:01:40.8]} 16... fxe4 {[%clk 0:01:31.4]} 17. Bxe4
{[%clk 0:01:31.7]} 17... Qh5 {[%clk 0:01:29.6]} 18. Bf3 {[%clk 0:01:23.1]} 18...
Qh7 {[%clk 0:01:27.6]} 19. Nxd6+ {[%clk 0:01:06.5]} 19... Kf8 {[%clk 0:01:23.6]}
20. g4 {[%clk 0:00:44.4]} 20... Bc6 {[%clk 0:01:24.6]} 21. e4 {[%clk 0:00:41.3]}
21... Nf6 {[%clk 0:01:21.6]} 22. d5 {[%clk 0:00:37.5]} 22... Qg6 {[%clk
0:01:19]} 23. Qf4 {[%clk 0:00:33.6]} 23... Kg8 {[%clk 0:01:09.3]} 24. dxc6
{[%clk 0:00:33.5]} 24... dxc6 {[%clk 0:01:08.5]} 25. e5 {[%clk 0:00:34.5]} 25...
Nd7 {[%clk 0:01:08.4]} 26. Bxc6 {[%clk 0:00:31]} 1-0

[Event "*** Titled Tuesday 3|2 Blitz"]
[Site "Chess.com"]
[Date "2015.02.24"]
[Round "8"]
[White "Chesseducation4u"]
[Black "raskolnnikov"]
[Result "1-0"]
[WhiteElo "2232"]
[BlackElo "2265"]
[TimeControl "180+2"]
[EndTime "12:41:56 PST"]
[Termination "Chesseducation4u won on time"]

1. Nf3 {[%clk 0:02:58.4]} 1... Nf6 {[%clk 0:02:59]} 2. g3 {[%clk 0:02:49.4]}
2... d5 {[%clk 0:02:59.8]} 3. Bg2 {[%clk 0:02:49.3]} 3... c6 {[%clk 0:03:01.7]}
4. c4 {[%clk 0:02:49.1]} 4... g6 {[%clk 0:03:03.6]} 5. b3 {[%clk 0:02:49.6]}
5... Bg7 {[%clk 0:03:05.2]} 6. Bb2 {[%clk 0:02:51.1]} 6... O-O {[%clk
0:03:06.9]} 7. O-O {[%clk 0:02:52.7]} 7... a5 {[%clk 0:03:08.6]} 8. Qc2 {[%clk
0:02:50.7]} 8... Bg4 {[%clk 0:03:08.1]} 9. d3 {[%clk 0:02:50.7]} 9... Nbd7
{[%clk 0:03:08.6]} 10. Nbd2 {[%clk 0:02:50.9]} 10... Re8 {[%clk 0:03:09.2]} 11.
h3 {[%clk 0:02:41]} 11... Bxf3 {[%clk 0:03:09.6]} 12. Bxf3 {[%clk 0:02:40.9]}
12... e5 {[%clk 0:03:11]} 13. Bg2 {[%clk 0:02:40.9]} 13... a4 {[%clk 0:03:07.8]}
14. b4 {[%clk 0:02:41]} 14... a3 {[%clk 0:03:08.1]} 15. Bc1 {[%clk 0:02:39.1]}
15... e4 {[%clk 0:03:05.6]} 16. Rb1 {[%clk 0:02:38.8]} 16... exd3 {[%clk
0:03:06.4]} 17. exd3 {[%clk 0:02:39.2]} 17... Ne5 {[%clk 0:02:37.8]} 18. c5
{[%clk 0:02:31.1]} 18... d4 {[%clk 0:02:06.3]} 19. f4 {[%clk 0:01:51.4]} 19...
Ned7 {[%clk 0:02:02.2]} 20. Nc4 {[%clk 0:01:51.7]} 20... Bf8 {[%clk 0:00:45.9]}
21. Qf2 {[%clk 0:01:27.6]} 21... b5 {[%clk 0:00:23.5]} 22. Ne5 {[%clk 0:01:25]}
22... Ra6 {[%clk 0:00:03.7]} 23. Nxc6 {[%clk 0:01:20.3]} 1-0

[Event "*** Titled Tuesday 3|2 Blitz"]
[Site "Chess.com"]
[Date "2015.02.24"]
[Round "8"]
[White "bsmail"]
[Black "iFrancisco"]
[Result "1-0"]
[WhiteElo "2124"]
[BlackElo "2267"]
[TimeControl "180+2"]
[EndTime "12:42:26 PST"]
[Termination "bsmail won by resignation"]

1. d4 {[%clk 0:03:00]} 1... d5 {[%clk 0:02:58.6]} 2. c4 {[%clk 0:03:00.5]} 2...
e6 {[%clk 0:02:59.9]} 3. Nc3 {[%clk 0:03:01.2]} 3... Nf6 {[%clk 0:03:01.2]} 4.
Bg5 {[%clk 0:03:02.3]} 4... Be7 {[%clk 0:03:02.3]} 5. e3 {[%clk 0:03:03.6]} 5...
c6 {[%clk 0:03:03.2]} 6. Nf3 {[%clk 0:03:04.5]} 6... Nbd7 {[%clk 0:03:04.5]} 7.
Rc1 {[%clk 0:03:04.9]} 7... h6 {[%clk 0:03:04.4]} 8. Bf4 {[%clk 0:03:03.9]} 8...
O-O {[%clk 0:03:05]} 9. Qc2 {[%clk 0:03:04.2]} 9... Nh5 {[%clk 0:03:05.4]} 10.
Be5 {[%clk 0:02:59.2]} 10... f5 {[%clk 0:02:52.5]} 11. Be2 {[%clk 0:02:58.3]}
11... Nhf6 {[%clk 0:02:49.3]} 12. a3 {[%clk 0:02:54.9]} 12... a6 {[%clk
0:02:43.2]} 13. b4 {[%clk 0:02:55.1]} 13... a5 {[%clk 0:02:39]} 14. c5 {[%clk
0:02:53.5]} 14... axb4 {[%clk 0:02:38.6]} 15. axb4 {[%clk 0:02:54.5]} 15... Ne4
{[%clk 0:02:37.8]} 16. O-O {[%clk 0:02:49.9]} 16... Qe8 {[%clk 0:02:27]} 17. h3
{[%clk 0:02:50.3]} 17... g5 {[%clk 0:02:25.7]} 18. Bh2 {[%clk 0:02:39.7]} 18...
Qg6 {[%clk 0:02:16.3]} 19. Nxe4 {[%clk 0:02:38.8]} 19... fxe4 {[%clk 0:02:10.7]}
20. Ne5 {[%clk 0:02:38.6]} 20... Nxe5 {[%clk 0:02:11]} 21. Bxe5 {[%clk
0:02:39.4]} 21... Bd7 {[%clk 0:02:11.4]} 22. f3 {[%clk 0:02:35.8]} 22... Ra3
{[%clk 0:02:08.9]} 23. fxe4 {[%clk 0:02:30.5]} 23... Rxe3 {[%clk 0:01:44.7]} 24.
exd5 {[%clk 0:02:26.6]} 24... Rxf1+ {[%clk 0:01:39.1]} 25. Bxf1 {[%clk
0:02:17.5]} 25... Qxc2 {[%clk 0:01:36.5]} 26. Rxc2 {[%clk 0:02:19.4]} 26... exd5
{[%clk 0:01:37.9]} 27. Ra2 {[%clk 0:02:06.3]} 27... Rb3 {[%clk 0:01:35.7]} 28.
b5 {[%clk 0:02:01.7]} 28... cxb5 {[%clk 0:01:33.9]} 29. Be2 {[%clk 0:01:42.9]}
29... b4 {[%clk 0:01:11.4]} 30. Ra8+ {[%clk 0:01:40.3]} 30... Bf8 {[%clk
0:00:44.6]} 31. Bd6 {[%clk 0:01:40.1]} 31... Ra3 {[%clk 0:00:39]} 32. Rxf8+
{[%clk 0:01:39.5]} 32... Kg7 {[%clk 0:00:40.2]} 33. Bh5 {[%clk 0:01:39.4]} 33...
Bf5 {[%clk 0:00:27.5]} 34. Rxf5 {[%clk 0:01:39.2]} 34... b3 {[%clk 0:00:28.3]}
35. Rf7+ {[%clk 0:01:39.6]} 35... Kg8 {[%clk 0:00:29.4]} 36. Rxb7 {[%clk
0:01:39.8]} 36... g4 {[%clk 0:00:29.6]} 37. hxg4 {[%clk 0:01:33.1]} 37... Kh8
{[%clk 0:00:30.6]} 38. Be5+ {[%clk 0:01:33.5]} 38... Kg8 {[%clk 0:00:31.5]} 39.
Bf7+ {[%clk 0:01:27.8]} 39... Kf8 {[%clk 0:00:29.6]} 40. Bxd5 {[%clk 0:01:27.1]}
40... h5 {[%clk 0:00:30.3]} 41. gxh5 {[%clk 0:01:27]} 1-0

[Event "*** Titled Tuesday 3|2 Blitz"]
[Site "Chess.com"]
[Date "2015.02.24"]
[Round "8"]
[White "ChessTrener"]
[Black "rhungaski"]
[Result "1-0"]
[WhiteElo "2482"]
[BlackElo "2425"]
[TimeControl "180+2"]
[EndTime "12:42:50 PST"]
[Termination "ChessTrener won by resignation"]

1. e4 {[%clk 0:02:59.8]} 1... d6 {[%clk 0:02:58.4]} 2. d4 {[%clk 0:03:00.4]}
2... Nf6 {[%clk 0:02:58.9]} 3. Nc3 {[%clk 0:03:01.7]} 3... e5 {[%clk 0:02:59.8]}
4. Nf3 {[%clk 0:03:02.5]} 4... Nbd7 {[%clk 0:03:00.8]} 5. g3 {[%clk 0:03:02.5]}
5... Be7 {[%clk 0:03:01]} 6. Bg2 {[%clk 0:03:04]} 6... c6 {[%clk 0:03:02.3]} 7.
O-O {[%clk 0:03:05]} 7... b5 {[%clk 0:03:02.8]} 8. a3 {[%clk 0:02:45.3]} 8... a5
{[%clk 0:03:00]} 9. Re1 {[%clk 0:02:42.3]} 9... Bb7 {[%clk 0:03:00.7]} 10. dxe5
{[%clk 0:02:38]} 10... dxe5 {[%clk 0:02:59.7]} 11. Nh4 {[%clk 0:02:39.1]} 11...
b4 {[%clk 0:02:56.4]} 12. Na4 {[%clk 0:02:37.4]} 12... O-O {[%clk 0:02:42]} 13.
b3 {[%clk 0:02:36]} 13... g6 {[%clk 0:02:38.6]} 14. Qf3 {[%clk 0:02:26.3]} 14...
Nh5 {[%clk 0:02:23.9]} 15. Nf5 {[%clk 0:02:24.7]} 15... c5 {[%clk 0:01:57.6]}
16. Bh6 {[%clk 0:01:54.3]} 16... Re8 {[%clk 0:01:56.7]} 17. axb4 {[%clk
0:01:53.7]} 17... axb4 {[%clk 0:01:56.4]} 18. Rad1 {[%clk 0:01:53.5]} 18... Ra6
{[%clk 0:01:44.6]} 19. Bh3 {[%clk 0:01:47]} 19... Bc8 {[%clk 0:01:33.1]} 20. Be3
{[%clk 0:01:41.1]} 20... c4 {[%clk 0:01:13.8]} 21. Nh6+ {[%clk 0:01:38.4]} 21...
Kg7 {[%clk 0:01:12.3]} 22. Qxf7+ {[%clk 0:01:29.1]} 22... Kh8 {[%clk 0:01:13.3]}
23. Qxc4 {[%clk 0:01:30]} 23... Rf6 {[%clk 0:01:07.6]} 24. Nf7+ {[%clk
0:01:27.9]} 24... Rxf7 {[%clk 0:01:08.5]} 25. Qxf7 {[%clk 0:01:29.8]} 25... Rf8
{[%clk 0:01:07.4]} 26. Qe6 {[%clk 0:01:28.9]} 26... Rf6 {[%clk 0:01:06.4]} 27.
Rxd7 {[%clk 0:01:21.6]} 27... Rxe6 {[%clk 0:01:01.5]} 28. Rxd8+ {[%clk
0:01:22.1]} 28... Bxd8 {[%clk 0:01:03.4]} 29. Bxe6 {[%clk 0:01:23.4]} 29... Bxe6
{[%clk 0:01:05.3]} 30. Bc5 {[%clk 0:01:22]} 30... Nf6 {[%clk 0:01:02]} 31. Bxb4
{[%clk 0:01:22.3]} 31... Bg4 {[%clk 0:01:01.4]} 32. Kg2 {[%clk 0:01:21.9]} 32...
h5 {[%clk 0:01:02.1]} 33. f3 {[%clk 0:01:22.8]} 33... Bc8 {[%clk 0:01:00.7]} 34.
Bc3 {[%clk 0:01:22.5]} 34... Bc7 {[%clk 0:00:59.9]} 35. Nc5 {[%clk 0:01:23.1]}
35... Kh7 {[%clk 0:00:58.7]} 36. Nd3 {[%clk 0:01:23.9]} 36... Nd7 {[%clk
0:00:59.2]} 37. Ra1 {[%clk 0:01:24.8]} 37... g5 {[%clk 0:00:51.3]} 38. Ra8
{[%clk 0:01:23.1]} 38... Bb8 {[%clk 0:00:52.8]} 39. Bxe5 {[%clk 0:01:13.7]}
39... Bxe5 {[%clk 0:00:40.3]} 40. Rxc8 {[%clk 0:01:11.4]} 40... Bd6 {[%clk
0:00:41.3]} 41. Rd8 {[%clk 0:01:12]} 1-0

[Event "*** Titled Tuesday 3|2 Blitz"]
[Site "Chess.com"]
[Date "2015.02.24"]
[Round "8"]
[White "GMNeiksans"]
[Black "GulamaliRises"]
[Result "1-0"]
[WhiteElo "2503"]
[BlackElo "2327"]
[TimeControl "180+2"]
[EndTime "12:42:56 PST"]
[Termination "GMNeiksans won by resignation"]

1. d4 {[%clk 0:03:00]} 1... Nf6 {[%clk 0:02:58.2]} 2. c4 {[%clk 0:03:00.3]} 2...
e6 {[%clk 0:02:59.2]} 3. Nf3 {[%clk 0:03:00.9]} 3... c5 {[%clk 0:03:00.3]} 4.
Nc3 {[%clk 0:02:59.9]} 4... a6 {[%clk 0:02:39.1]} 5. e4 {[%clk 0:02:54.8]} 5...
cxd4 {[%clk 0:02:40.1]} 6. Nxd4 {[%clk 0:02:55.5]} 6... Qc7 {[%clk 0:02:41.2]}
7. Qc2 {[%clk 0:02:44.7]} 7... Bc5 {[%clk 0:02:39.9]} 8. Nb3 {[%clk 0:02:43.6]}
8... Bd6 {[%clk 0:02:35.8]} 9. Be3 {[%clk 0:02:35]} 9... Ng4 {[%clk 0:02:25]}
10. Bd4 {[%clk 0:02:35.9]} 10... Nc6 {[%clk 0:02:22.5]} 11. Bxg7 {[%clk
0:02:29.9]} 11... Rg8 {[%clk 0:02:22.7]} 12. Bd4 {[%clk 0:02:25.5]} 12... Nxd4
{[%clk 0:02:20.9]} 13. Nxd4 {[%clk 0:02:26.3]} 13... Bc5 {[%clk 0:02:22.4]} 14.
Rd1 {[%clk 0:02:20.6]} 14... Qe5 {[%clk 0:01:32.8]} 15. Qd2 {[%clk 0:02:13.5]}
15... f5 {[%clk 0:01:30.9]} 16. f4 {[%clk 0:02:09.3]} 16... Qg7 {[%clk
0:00:52.2]} 17. exf5 {[%clk 0:02:04]} 17... exf5 {[%clk 0:00:29.3]} 18. Nd5
{[%clk 0:02:01]} 18... Kd8 {[%clk 0:00:21.4]} 19. Qa5+ {[%clk 0:01:27.1]} 19...
b6 {[%clk 0:00:21.5]} 20. Nxb6 {[%clk 0:01:28.4]} 20... Qe7+ {[%clk 0:00:22.6]}
21. Kd2 {[%clk 0:01:01.4]} 21... Bb4+ {[%clk 0:00:20.8]} 22. Kc2 {[%clk
0:01:02.9]} 22... Ne3+ {[%clk 0:00:11.3]} 23. Kb1 {[%clk 0:00:57.9]} 23... Bxa5
{[%clk 0:00:06.7]} 24. Nc6+ {[%clk 0:00:58.9]} 24... Kc7 {[%clk 0:00:05.2]} 25.
Nxe7 {[%clk 0:00:59.2]} 25... Bxb6 {[%clk 0:00:06.4]} 26. c5 {[%clk 0:00:50.8]}
26... Bxc5 {[%clk 0:00:07.1]} 27. Rc1 {[%clk 0:00:52.2]} 27... Re8 {[%clk
0:00:07.2]} 28. Rxc5+ {[%clk 0:00:51]} 28... Kb6 {[%clk 0:00:08.8]} 29. Re5
{[%clk 0:00:46]} 29... Ng4 {[%clk 0:00:07]} 30. Nd5+ {[%clk 0:00:45.8]} 30...
Kc5 {[%clk 0:00:08.3]} 31. Rxe8 {[%clk 0:00:46.8]} 31... Kxd5 {[%clk 0:00:09.8]}
32. Be2 {[%clk 0:00:47]} 32... Kd4 {[%clk 0:00:10.3]} 33. Rd1+ {[%clk
0:00:45.4]} 33... Kc5 {[%clk 0:00:11.7]} 34. Rc1+ {[%clk 0:00:45.5]} 1-0

[Event "*** Titled Tuesday 3|2 Blitz"]
[Site "Chess.com"]
[Date "2015.02.24"]
[Round "8"]
[White "Zvonokchess"]
[Black "tigrangharamian"]
[Result "0-1"]
[WhiteElo "2470"]
[BlackElo "2541"]
[TimeControl "180+2"]
[EndTime "12:42:59 PST"]
[Termination "tigrangharamian won by checkmate"]

1. e4 {[%clk 0:02:51.1]} 1... c5 {[%clk 0:02:59]} 2. d4 {[%clk 0:02:51.2]} 2...
cxd4 {[%clk 0:03:00]} 3. c3 {[%clk 0:02:52.2]} 3... d3 {[%clk 0:03:01.4]} 4.
Bxd3 {[%clk 0:02:53.3]} 4... d6 {[%clk 0:03:02.7]} 5. Nf3 {[%clk 0:02:54.8]}
5... Nc6 {[%clk 0:03:04.2]} 6. O-O {[%clk 0:02:56.1]} 6... Bg4 {[%clk
0:03:05.8]} 7. Qe2 {[%clk 0:02:55.9]} 7... g6 {[%clk 0:03:07.1]} 8. Rd1 {[%clk
0:02:56.8]} 8... Bg7 {[%clk 0:03:08.6]} 9. h3 {[%clk 0:02:58.2]} 9... Bxf3
{[%clk 0:03:09.7]} 10. Qxf3 {[%clk 0:03:00.1]} 10... Nf6 {[%clk 0:03:11.4]} 11.
Na3 {[%clk 0:03:01.4]} 11... O-O {[%clk 0:03:12.8]} 12. Bf4 {[%clk 0:03:01.4]}
12... Nd7 {[%clk 0:03:14]} 13. Qg3 {[%clk 0:02:59.4]} 13... a6 {[%clk
0:03:14.9]} 14. h4 {[%clk 0:02:49.2]} 14... Nf6 {[%clk 0:03:15.3]} 15. Qf3
{[%clk 0:02:44.5]} 15... h5 {[%clk 0:03:15.2]} 16. Nc4 {[%clk 0:02:05.7]} 16...
Ng4 {[%clk 0:03:15.7]} 17. Be2 {[%clk 0:02:00.9]} 17... b5 {[%clk 0:03:15.1]}
18. Ne3 {[%clk 0:02:00]} 18... Nce5 {[%clk 0:03:13]} 19. Qg3 {[%clk 0:01:59.1]}
19... Nxe3 {[%clk 0:03:13.3]} 20. Bxe3 {[%clk 0:01:57.4]} 20... Qc7 {[%clk
0:03:14.1]} 21. Bd4 {[%clk 0:01:54.6]} 21... Qc6 {[%clk 0:03:00.9]} 22. f4
{[%clk 0:01:32.4]} 22... Nd7 {[%clk 0:02:59.7]} 23. Bf3 {[%clk 0:01:24.2]} 23...
e5 {[%clk 0:02:57]} 24. Be3 {[%clk 0:01:21.7]} 24... exf4 {[%clk 0:02:56.2]} 25.
Bxf4 {[%clk 0:01:23.1]} 25... Ne5 {[%clk 0:02:57.7]} 26. Rd5 {[%clk 0:01:13.1]}
26... b4 {[%clk 0:02:55.8]} 27. cxb4 {[%clk 0:01:09]} 27... Qb6+ {[%clk
0:02:57.1]} 28. Kh1 {[%clk 0:01:09.5]} 28... Qxb4 {[%clk 0:02:58.5]} 29. Rad1
{[%clk 0:01:03.5]} 29... Qxb2 {[%clk 0:02:52.1]} 30. Rxd6 {[%clk 0:01:02.4]}
30... Nxf3 {[%clk 0:02:50.8]} 31. gxf3 {[%clk 0:00:58.5]} 31... Qxa2 {[%clk
0:02:43.5]} 32. Rd7 {[%clk 0:00:42]} 32... Rac8 {[%clk 0:02:29.1]} 33. Bd6
{[%clk 0:00:39.8]} 33... Rfd8 {[%clk 0:02:22.7]} 34. Rxd8+ {[%clk 0:00:40.1]}
34... Rxd8 {[%clk 0:02:24]} 35. e5 {[%clk 0:00:42]} 35... Qe6 {[%clk 0:02:22]}
36. Re1 {[%clk 0:00:41.2]} 36... a5 {[%clk 0:02:20.1]} 37. Kg2 {[%clk
0:00:39.6]} 37... a4 {[%clk 0:02:20.5]} 38. Qf2 {[%clk 0:00:38.3]} 38... Ra8
{[%clk 0:02:16.7]} 39. Ba3 {[%clk 0:00:27.6]} 39... Bxe5 {[%clk 0:02:02.7]} 40.
Bb2 {[%clk 0:00:28.8]} 40... f6 {[%clk 0:01:59.8]} 41. Bxe5 {[%clk 0:00:29.7]}
41... fxe5 {[%clk 0:02:01.7]} 42. Qc5 {[%clk 0:00:29.6]} 42... Re8 {[%clk
0:01:50.7]} 43. Rd1 {[%clk 0:00:28.3]} 43... e4 {[%clk 0:01:50.5]} 44. Rd6
{[%clk 0:00:10.2]} 44... exf3+ {[%clk 0:01:50.9]} 45. Kh2 {[%clk 0:00:07.1]}
45... Qe2+ {[%clk 0:01:47.5]} 46. Kg3 {[%clk 0:00:08.5]} 46... Qg2+ {[%clk
0:01:47.9]} 47. Kf4 {[%clk 0:00:09.9]} 47... Qg4# {[%clk 0:01:49.1]} 0-1

[Event "*** Titled Tuesday 3|2 Blitz"]
[Site "Chess.com"]
[Date "2015.02.24"]
[Round "8"]
[White "megarompa"]
[Black "AkshatChandra"]
[Result "1-0"]
[WhiteElo "2668"]
[BlackElo "2456"]
[TimeControl "180+2"]
[EndTime "12:43:08 PST"]
[Termination "megarompa won by resignation"]

1. d4 {[%clk 0:02:57.9]} 1... Nf6 {[%clk 0:02:58.4]} 2. Nf3 {[%clk 0:02:59.1]}
2... d5 {[%clk 0:02:57.1]} 3. c4 {[%clk 0:02:59.2]} 3... e6 {[%clk 0:02:57.9]}
4. Nc3 {[%clk 0:02:57.9]} 4... c6 {[%clk 0:02:58.7]} 5. e3 {[%clk 0:02:57.3]}
5... Nbd7 {[%clk 0:02:58.8]} 6. Ne5 {[%clk 0:02:58.8]} 6... Be7 {[%clk
0:02:41.9]} 7. f4 {[%clk 0:02:57.5]} 7... c5 {[%clk 0:02:40.8]} 8. cxd5 {[%clk
0:02:51.3]} 8... exd5 {[%clk 0:02:36.3]} 9. Bd3 {[%clk 0:02:49.5]} 9... cxd4
{[%clk 0:02:30.1]} 10. exd4 {[%clk 0:02:48.5]} 10... O-O {[%clk 0:02:26.8]} 11.
O-O {[%clk 0:02:48.9]} 11... Re8 {[%clk 0:02:26.2]} 12. Qf3 {[%clk 0:02:46.8]}
12... Nf8 {[%clk 0:02:20.4]} 13. Bd2 {[%clk 0:02:44.2]} 13... Bb4 {[%clk
0:02:11]} 14. Rae1 {[%clk 0:02:38.5]} 14... Qb6 {[%clk 0:01:32.1]} 15. Kh1
{[%clk 0:02:33.7]} 15... Bd7 {[%clk 0:00:48.2]} 16. g4 {[%clk 0:02:10.4]} 16...
Bxc3 {[%clk 0:00:36.1]} 17. bxc3 {[%clk 0:02:08.7]} 17... Ne4 {[%clk 0:00:36.6]}
18. Bxe4 {[%clk 0:02:06]} 18... dxe4 {[%clk 0:00:36.8]} 19. Rxe4 {[%clk
0:02:07.9]} 19... Bc6 {[%clk 0:00:34.1]} 20. Nxc6 {[%clk 0:02:09]} 20... Qxc6
{[%clk 0:00:34.9]} 21. Rxe8 {[%clk 0:02:07.6]} 21... Qxf3+ {[%clk 0:00:35.6]}
22. Rxf3 {[%clk 0:02:05.1]} 22... Rxe8 {[%clk 0:00:37.2]} 23. Re3 {[%clk
0:02:07]} 23... Rxe3 {[%clk 0:00:19.7]} 24. Bxe3 {[%clk 0:02:08.9]} 24... Nd7
{[%clk 0:00:18.2]} 25. Kg2 {[%clk 0:02:04.1]} 25... Kf8 {[%clk 0:00:12.2]} 26.
Kf3 {[%clk 0:02:04.1]} 26... Ke7 {[%clk 0:00:12.2]} 27. d5 {[%clk 0:02:03.5]}
27... a6 {[%clk 0:00:07.5]} 28. c4 {[%clk 0:02:01]} 28... Kd6 {[%clk 0:00:07.9]}
29. a4 {[%clk 0:01:56.8]} 29... g6 {[%clk 0:00:05.3]} 30. a5 {[%clk 0:01:53.9]}
30... f5 {[%clk 0:00:05.9]} 31. Bd4 {[%clk 0:01:47.9]} 31... Ke7 {[%clk
0:00:03.9]} 32. h4 {[%clk 0:01:44.9]} 32... h5 {[%clk 0:00:04.5]} 33. gxh5
{[%clk 0:01:45.9]} 33... gxh5 {[%clk 0:00:05.6]} 34. c5 {[%clk 0:01:45.1]} 34...
Nf8 {[%clk 0:00:06.6]} 35. c6 {[%clk 0:01:41.6]} 35... bxc6 {[%clk 0:00:03.9]}
36. Bc5+ {[%clk 0:01:42.9]} 36... Ke8 {[%clk 0:00:05.3]} 37. Bxf8 {[%clk
0:01:43.9]} 37... Kxf8 {[%clk 0:00:07.2]} 38. dxc6 {[%clk 0:01:33.2]} 38... Ke7
{[%clk 0:00:08.1]} 39. Ke3 {[%clk 0:01:34.9]} 39... Kd6 {[%clk 0:00:05.8]} 40.
Kd4 {[%clk 0:01:33.8]} 40... Kxc6 {[%clk 0:00:07.3]} 41. Ke5 {[%clk 0:01:35.7]}
41... Kb5 {[%clk 0:00:08.3]} 42. Kxf5 {[%clk 0:01:37.3]} 42... Kxa5 {[%clk
0:00:10.2]} 43. Kg6 {[%clk 0:01:31.3]} 43... Kb5 {[%clk 0:00:10.4]} 44. f5
{[%clk 0:01:33.2]} 44... a5 {[%clk 0:00:12.1]} 45. f6 {[%clk 0:01:35.1]} 45...
a4 {[%clk 0:00:14]} 46. f7 {[%clk 0:01:35.7]} 46... a3 {[%clk 0:00:15.9]} 47.
f8=Q {[%clk 0:01:37.1]} 47... a2 {[%clk 0:00:17.8]} 48. Qh8 {[%clk 0:01:38.2]}
1-0